[Event "Titled Tuesday Blitz May 16 Early 2023"]
[White "Pichot, Alan"]
[Black "Alex_Sahakyan2006"]
[WhiteFideId "110973"]
[WhiteElo "2573"]
[BlackElo "2658"]
[Result "0-1"]
[Round "06"]
[TimeControl "180+2"]
[Date "2023.05.16"]
[WhiteClock "0:00:23"]
[BlackClock "0:00:14"]

1. e4 {[%clk 0:03:00]}  c5 {[%clk 0:02:54]} 2. Nf3 {[%clk 0:02:59]}  d6 {[%clk 0:02:54]} 3. Bb5+ {[%clk 0:02:57]}  Nd7 {[%clk 0:02:54]} 4. a4 {[%clk 0:02:57]}  a6 {[%clk 0:02:53]} 5. Be2 {[%clk 0:02:56]}  Ngf6 {[%clk 0:02:52]} 6. Nc3 {[%clk 0:02:57]}  g6 {[%clk 0:02:47]} 7. a5 {[%clk 0:02:56]}  Bg7 {[%clk 0:02:46]} 8. O-O {[%clk 0:02:57]}  O-O {[%clk 0:02:46]} 9. d3 {[%clk 0:02:57]}  Rb8 {[%clk 0:02:45]} 10. Bf4 {[%clk 0:02:32]}  b5 {[%clk 0:02:36]} 11. axb6 {[%clk 0:02:33]}  Rxb6 {[%clk 0:02:34]} 12. Ra2 {[%clk 0:02:33]}  Bb7 {[%clk 0:02:17]} 13. Qd2 {[%clk 0:02:32]}  Ng4 {[%clk 0:02:11]} 14. h3 {[%clk 0:02:29]}  Nge5 {[%clk 0:02:11]} 15. Bh6 {[%clk 0:02:25]}  Nxf3+ {[%clk 0:02:08]} 16. Bxf3 {[%clk 0:02:25]}  Ne5 {[%clk 0:02:09]} 17. Be2 {[%clk 0:02:26]}  e6 {[%clk 0:01:50]} 18. Bxg7 {[%clk 0:02:00]}  Kxg7 {[%clk 0:01:51]} 19. d4 {[%clk 0:02:01]}  cxd4 {[%clk 0:01:29]} 20. Qxd4 {[%clk 0:02:02]}  Kg8 {[%clk 0:01:29]} 21. Rd1 {[%clk 0:02:02]}  Qc7 {[%clk 0:01:16]} 22. f4 {[%clk 0:01:51]}  Nd7 {[%clk 0:01:14]} 23. e5 {[%clk 0:01:51]}  d5 {[%clk 0:00:48]} 24. Na4 {[%clk 0:01:48]}  Rc6 {[%clk 0:00:45]} 25. c3 {[%clk 0:01:48]}  Nb6 {[%clk 0:00:41]} 26. Nxb6 {[%clk 0:01:45]}  Qxb6 {[%clk 0:00:42]} 27. Qxb6 {[%clk 0:01:27]}  Rxb6 {[%clk 0:00:43]} 28. Rd4 {[%clk 0:01:27]}  Rb8 {[%clk 0:00:39]} 29. Kf2 {[%clk 0:01:20]}  Bc6 {[%clk 0:00:36]} 30. b4 {[%clk 0:01:00]}  Bb5 {[%clk 0:00:34]} 31. Ke3 {[%clk 0:01:00]}  Rc8 {[%clk 0:00:32]} 32. Ra3 {[%clk 0:00:58]}  Rbc6 {[%clk 0:00:28]} 33. Bxb5 {[%clk 0:00:58]}  axb5 {[%clk 0:00:28]} 34. Kd2 {[%clk 0:00:57]}  h6 {[%clk 0:00:21]} 35. Ra5 {[%clk 0:00:57]}  Rxc3 {[%clk 0:00:19]} 36. Ra8 {[%clk 0:00:27]}  Rc2+ {[%clk 0:00:17]} 37. Kd1 {[%clk 0:00:26]}  Rxa8 {[%clk 0:00:16]} 38. Kxc2 {[%clk 0:00:27]}  Ra2+ {[%clk 0:00:17]} 39. Kc3 {[%clk 0:00:28]}  Rxg2 {[%clk 0:00:17]} 40. Rd3 {[%clk 0:00:28]}  g5 {[%clk 0:00:15]} 41. fxg5 {[%clk 0:00:27]}  hxg5 {[%clk 0:00:16]} 42. Kd4 {[%clk 0:00:28]}  Rc2 {[%clk 0:00:17]} 43. Rg3 {[%clk 0:00:24]}  Rc4+ {[%clk 0:00:16]} 44. Kd3 {[%clk 0:00:25]}  Rxb4 {[%clk 0:00:17]} 45. Rxg5+ {[%clk 0:00:26]}  Kf8 {[%clk 0:00:17]} 46. Rh5 {[%clk 0:00:25]}  Re4 {[%clk 0:00:14]} 47. h4 {[%clk 0:00:24]}  b4 {[%clk 0:00:14]} 48. Rg5 {[%clk 0:00:23]}  Rxh4 {[%clk 0:00:14]} 0-1


[Site "https://www.chess.com"]

[Event "Titled Tuesday Blitz May 16 Early 2023"]
[White "Manukyan, Sargis V."]
[Black "Visakh N R"]
[WhiteFideId "13303465"]
[BlackFideId "25012223"]
[WhiteElo "2236"]
[BlackElo "2466"]
[Result "0-1"]
[Round "06"]
[TimeControl "180+2"]
[Date "2023.05.16"]
[WhiteClock "0:00:03"]
[BlackClock "0:00:32"]

1. Nf3 {[%clk 0:03:00]}  d5 {[%clk 0:02:57]} 2. g3 {[%clk 0:03:00]}  Nd7 {[%clk 0:02:56]} 3. d4 {[%clk 0:03:01]}  Nb6 {[%clk 0:02:54]} 4. Bg2 {[%clk 0:03:01]}  Bf5 {[%clk 0:02:52]} 5. O-O {[%clk 0:03:01]}  h6 {[%clk 0:02:52]} 6. Ne5 {[%clk 0:02:51]}  e6 {[%clk 0:02:52]} 7. b3 {[%clk 0:02:39]}  Nf6 {[%clk 0:02:52]} 8. Bb2 {[%clk 0:02:39]}  c6 {[%clk 0:02:51]} 9. Nd2 {[%clk 0:02:38]}  Be7 {[%clk 0:02:50]} 10. c4 {[%clk 0:02:36]}  O-O {[%clk 0:02:50]} 11. Re1 {[%clk 0:02:35]}  Nbd7 {[%clk 0:02:49]} 12. Nd3 {[%clk 0:02:30]}  a5 {[%clk 0:02:43]} 13. e4 {[%clk 0:02:23]}  dxe4 {[%clk 0:02:42]} 14. Nxe4 {[%clk 0:02:23]}  a4 {[%clk 0:02:26]} 15. Nxf6+ {[%clk 0:02:04]}  Bxf6 {[%clk 0:02:25]} 16. Ne5 {[%clk 0:02:02]}  Nxe5 {[%clk 0:01:52]} 17. dxe5 {[%clk 0:02:01]}  Be7 {[%clk 0:01:53]} 18. bxa4 {[%clk 0:01:46]}  Qa5 {[%clk 0:01:41]} 19. Qb3 {[%clk 0:01:42]}  Bc5 {[%clk 0:01:25]} 20. Ba3 {[%clk 0:01:16]}  Bxa3 {[%clk 0:01:21]} 21. Qxa3 {[%clk 0:01:17]}  Qxa4 {[%clk 0:01:21]} 22. Qb2 {[%clk 0:01:02]}  Ra7 {[%clk 0:01:12]} 23. c5 {[%clk 0:00:56]}  Rd8 {[%clk 0:01:06]} 24. Bf3 {[%clk 0:00:40]}  Qa3 {[%clk 0:01:03]} 25. Qxa3 {[%clk 0:00:32]}  Rxa3 {[%clk 0:01:04]} 26. Be4 {[%clk 0:00:31]}  Bxe4 {[%clk 0:00:51]} 27. Rxe4 {[%clk 0:00:32]}  Rd5 {[%clk 0:00:52]} 28. Rb1 {[%clk 0:00:25]}  Ra7 {[%clk 0:00:51]} 29. Reb4 {[%clk 0:00:20]}  Rxa2 {[%clk 0:00:45]} 30. Rxb7 {[%clk 0:00:19]}  Rxe5 {[%clk 0:00:45]} 31. Rb8+ {[%clk 0:00:19]}  Kh7 {[%clk 0:00:43]} 32. R8b7 {[%clk 0:00:17]}  Kg6 {[%clk 0:00:40]} 33. Rc1 {[%clk 0:00:16]}  Ree2 {[%clk 0:00:38]} 34. Rf1 {[%clk 0:00:13]}  Rac2 {[%clk 0:00:38]} 35. h4 {[%clk 0:00:12]}  Rxc5 {[%clk 0:00:36]} 36. Kg2 {[%clk 0:00:11]}  h5 {[%clk 0:00:36]} 37. Rc7 {[%clk 0:00:08]}  Rc3 {[%clk 0:00:35]} 38. Rd1 {[%clk 0:00:07]}  Rcc2 {[%clk 0:00:35]} 39. Rf1 {[%clk 0:00:08]}  Red2 {[%clk 0:00:35]} 40. Kf3 {[%clk 0:00:07]}  c5 {[%clk 0:00:35]} 41. Ke3 {[%clk 0:00:07]}  Rd5 {[%clk 0:00:33]} 42. f4 {[%clk 0:00:07]}  Rc3+ {[%clk 0:00:33]} 43. Ke2 {[%clk 0:00:07]}  Rxg3 {[%clk 0:00:32]} 44. f5+ {[%clk 0:00:03]}  Rxf5 {[%clk 0:00:32]} 0-1


[Site "https://www.chess.com"]

[Event "Titled Tuesday Blitz May 16 Early 2023"]
[White "Kravtsiv, Martyn"]
[Black "Czerw, Dawid"]
[WhiteFideId "14113147"]
[BlackFideId "1145746"]
[WhiteElo "2695"]
[BlackElo "2144"]
[Result "1-0"]
[Round "06"]
[TimeControl "180+2"]
[Date "2023.05.16"]
[WhiteClock "0:01:53"]
[BlackClock "0:00:03"]

1. e4 {[%clk 0:03:00]}  c5 {[%clk 0:02:59]} 2. Nf3 {[%clk 0:03:01]}  Nc6 {[%clk 0:03:00]} 3. d4 {[%clk 0:03:00]}  cxd4 {[%clk 0:03:00]} 4. Nxd4 {[%clk 0:03:00]}  Nf6 {[%clk 0:03:01]} 5. Nc3 {[%clk 0:03:00]}  e5 {[%clk 0:03:01]} 6. Ndb5 {[%clk 0:02:59]}  d6 {[%clk 0:03:02]} 7. Bg5 {[%clk 0:03:00]}  a6 {[%clk 0:03:01]} 8. Na3 {[%clk 0:03:00]}  b5 {[%clk 0:03:01]} 9. Nd5 {[%clk 0:03:01]}  Be7 {[%clk 0:03:00]} 10. Bxf6 {[%clk 0:03:01]}  Bxf6 {[%clk 0:03:01]} 11. c4 {[%clk 0:03:01]}  b4 {[%clk 0:02:59]} 12. Nc2 {[%clk 0:03:02]}  a5 {[%clk 0:02:59]} 13. g3 {[%clk 0:03:01]}  O-O {[%clk 0:02:55]} 14. Bg2 {[%clk 0:03:01]}  Bg5 {[%clk 0:02:45]} 15. O-O {[%clk 0:03:00]}  Rb8 {[%clk 0:02:32]} 16. Qd3 {[%clk 0:02:59]}  Qd7 {[%clk 0:02:19]} 17. Rad1 {[%clk 0:02:54]}  Qa7 {[%clk 0:02:15]} 18. Kh1 {[%clk 0:02:51]}  Nd8 {[%clk 0:02:01]} 19. f4 {[%clk 0:02:50]}  Bh6 {[%clk 0:02:00]} 20. f5 {[%clk 0:02:45]}  f6 {[%clk 0:01:53]} 21. h4 {[%clk 0:02:45]}  Nb7 {[%clk 0:01:39]} 22. Ne7+ {[%clk 0:02:39]}  Kh8 {[%clk 0:01:36]} 23. Nc6 {[%clk 0:02:39]}  Qa8 {[%clk 0:01:22]} 24. Nxb8 {[%clk 0:02:37]}  Qxb8 {[%clk 0:01:23]} 25. b3 {[%clk 0:02:32]}  Rd8 {[%clk 0:01:20]} 26. Qf3 {[%clk 0:02:26]}  Nc5 {[%clk 0:01:15]} 27. Ne3 {[%clk 0:02:27]}  Bxe3 {[%clk 0:00:47]} 28. Qxe3 {[%clk 0:02:28]}  Bb7 {[%clk 0:00:47]} 29. Rd2 {[%clk 0:02:27]}  Bc6 {[%clk 0:00:45]} 30. Rfd1 {[%clk 0:02:25]}  Rd7 {[%clk 0:00:31]} 31. Kh2 {[%clk 0:02:24]}  Kg8 {[%clk 0:00:30]} 32. Bf3 {[%clk 0:02:22]}  Kf7 {[%clk 0:00:29]} 33. g4 {[%clk 0:02:22]}  Ke7 {[%clk 0:00:28]} 34. g5 {[%clk 0:02:21]}  Qb7 {[%clk 0:00:20]} 35. Rxd6 {[%clk 0:02:15]}  Rxd6 {[%clk 0:00:15]} 36. Qxc5 {[%clk 0:02:14]}  Qd7 {[%clk 0:00:14]} 37. Kg3 {[%clk 0:02:11]}  Qc7 {[%clk 0:00:07]} 38. Rxd6 {[%clk 0:02:05]}  Qxd6 {[%clk 0:00:07]} 39. Qxa5 {[%clk 0:02:06]}  Qd2 {[%clk 0:00:05]} 40. Qc5+ {[%clk 0:02:05]}  Kd7 {[%clk 0:00:04]} 41. Qa7+ {[%clk 0:01:54]}  Kd6 {[%clk 0:00:03]} 42. c5# {[%clk 0:01:53]} 1-0


[Site "https://www.chess.com"]

[Event "Titled Tuesday Blitz May 16 Early 2023"]
[White "Halkias, Stelios"]
[Black "Lazavik, Denis"]
[WhiteFideId "4201809"]
[BlackFideId "13515110"]
[WhiteElo "2451"]
[BlackElo "2560"]
[Result "0-1"]
[Round "06"]
[TimeControl "180+2"]
[Date "2023.05.16"]
[WhiteClock "0:00:01"]
[BlackClock "0:00:07"]

1. Nf3 {[%clk 0:02:56]}  d5 {[%clk 0:03:00]} 2. d4 {[%clk 0:02:55]}  Nf6 {[%clk 0:03:00]} 3. c4 {[%clk 0:02:55]}  c6 {[%clk 0:03:00]} 4. cxd5 {[%clk 0:02:52]}  cxd5 {[%clk 0:03:00]} 5. Nc3 {[%clk 0:02:53]}  Nc6 {[%clk 0:03:01]} 6. Bf4 {[%clk 0:02:52]}  e6 {[%clk 0:03:01]} 7. e3 {[%clk 0:02:51]}  Be7 {[%clk 0:03:01]} 8. Bd3 {[%clk 0:02:50]}  O-O {[%clk 0:03:01]} 9. h3 {[%clk 0:02:44]}  Bd7 {[%clk 0:03:01]} 10. O-O {[%clk 0:02:44]}  Rc8 {[%clk 0:03:00]} 11. Rc1 {[%clk 0:02:42]}  Be8 {[%clk 0:02:50]} 12. Bb1 {[%clk 0:02:40]}  Nd7 {[%clk 0:02:40]} 13. Qd3 {[%clk 0:02:37]}  f5 {[%clk 0:02:40]} 14. Bh2 {[%clk 0:02:35]}  Bh5 {[%clk 0:02:39]} 15. Ne2 {[%clk 0:02:29]}  Bxf3 {[%clk 0:02:36]} 16. gxf3 {[%clk 0:02:29]}  Nf6 {[%clk 0:02:37]} 17. Kh1 {[%clk 0:02:29]}  Bd6 {[%clk 0:02:36]} 18. Bxd6 {[%clk 0:02:21]}  Qxd6 {[%clk 0:02:36]} 19. Rg1 {[%clk 0:02:21]}  Ne7 {[%clk 0:02:35]} 20. Qb3 {[%clk 0:02:15]}  b6 {[%clk 0:02:32]} 21. Nf4 {[%clk 0:02:08]}  Rxc1 {[%clk 0:02:31]} 22. Rxc1 {[%clk 0:02:08]}  Ng6 {[%clk 0:02:32]} 23. Nd3 {[%clk 0:02:06]}  f4 {[%clk 0:02:28]} 24. Qb4 {[%clk 0:01:43]}  Qd8 {[%clk 0:02:17]} 25. Rc6 {[%clk 0:01:17]}  fxe3 {[%clk 0:02:14]} 26. fxe3 {[%clk 0:01:16]}  Ne8 {[%clk 0:01:45]} 27. f4 {[%clk 0:00:46]}  Ne7 {[%clk 0:01:35]} 28. Rxe6 {[%clk 0:00:38]}  Nf5 {[%clk 0:01:35]} 29. Ne5 {[%clk 0:00:37]}  Ned6 {[%clk 0:01:24]} 30. Qb3 {[%clk 0:00:26]}  Qh4 {[%clk 0:01:09]} 31. Qxd5 {[%clk 0:00:23]}  Qe1+ {[%clk 0:00:41]} 32. Kh2 {[%clk 0:00:22]}  Qg3+ {[%clk 0:00:31]} 33. Kh1 {[%clk 0:00:21]}  Qxh3+ {[%clk 0:00:31]} 34. Kg1 {[%clk 0:00:21]}  Qxe3+ {[%clk 0:00:29]} 35. Kh1 {[%clk 0:00:20]}  Qe1+ {[%clk 0:00:28]} 36. Kh2 {[%clk 0:00:20]}  Qf2+ {[%clk 0:00:27]} 37. Qg2 {[%clk 0:00:20]}  Qxf4+ {[%clk 0:00:27]} 38. Kh1 {[%clk 0:00:18]}  Qh4+ {[%clk 0:00:24]} 39. Kg1 {[%clk 0:00:17]}  Qe1+ {[%clk 0:00:19]} 40. Kh2 {[%clk 0:00:16]}  Qh4+ {[%clk 0:00:18]} 41. Kg1 {[%clk 0:00:16]}  Qxd4+ {[%clk 0:00:19]} 42. Kh2 {[%clk 0:00:16]}  Qh4+ {[%clk 0:00:13]} 43. Qh3 {[%clk 0:00:15]}  Qf2+ {[%clk 0:00:09]} 44. Qg2 {[%clk 0:00:15]}  Qf4+ {[%clk 0:00:09]} 45. Kh1 {[%clk 0:00:15]}  Rc8 {[%clk 0:00:09]} 46. Nd3 {[%clk 0:00:11]}  Qh4+ {[%clk 0:00:08]} 47. Kg1 {[%clk 0:00:10]}  Qd4+ {[%clk 0:00:06]} 48. Kh2 {[%clk 0:00:10]}  h6 {[%clk 0:00:06]} 49. Re5 {[%clk 0:00:06]}  Qh4+ {[%clk 0:00:06]} 50. Kg1 {[%clk 0:00:05]}  Rf8 {[%clk 0:00:06]} 51. Qd5+ {[%clk 0:00:04]}  Kh8 {[%clk 0:00:06]} 52. Qg2 {[%clk 0:00:04]}  Nd4 {[%clk 0:00:06]} 53. Re1 {[%clk 0:00:02]}  Nf3+ {[%clk 0:00:06]} 54. Qxf3 {[%clk 0:00:02]}  Rxf3 {[%clk 0:00:07]} 55. Re8+ {[%clk 0:00:02]}  Nxe8 {[%clk 0:00:07]} 56. Ne5 {[%clk 0:00:01]}  Qg3+ {[%clk 0:00:07]} 0-1


[Site "https://www.chess.com"]

[Event "Titled Tuesday Blitz May 16 Early 2023"]
[White "Grigoriants, Sergey"]
[Black "Harshavardhan G B"]
[WhiteFideId "4130804"]
[BlackFideId "25059009"]
[WhiteElo "2502"]
[BlackElo "2323"]
[Result "0-1"]
[Round "06"]
[TimeControl "180+2"]
[Date "2023.05.16"]
[WhiteClock "0:00:14"]
[BlackClock "0:01:39"]

1. d4 {[%clk 0:02:55]}  Nf6 {[%clk 0:02:59]} 2. c4 {[%clk 0:02:55]}  e6 {[%clk 0:02:59]} 3. g3 {[%clk 0:02:55]}  c5 {[%clk 0:02:58]} 4. d5 {[%clk 0:02:54]}  exd5 {[%clk 0:02:59]} 5. cxd5 {[%clk 0:02:55]}  d6 {[%clk 0:02:59]} 6. Nc3 {[%clk 0:02:55]}  g6 {[%clk 0:02:59]} 7. Bg2 {[%clk 0:02:56]}  Bg7 {[%clk 0:03:00]} 8. Nf3 {[%clk 0:02:56]}  O-O {[%clk 0:03:00]} 9. O-O {[%clk 0:02:57]}  Re8 {[%clk 0:03:00]} 10. h3 {[%clk 0:02:57]}  a6 {[%clk 0:02:57]} 11. a4 {[%clk 0:02:57]}  Nbd7 {[%clk 0:02:57]} 12. Bf4 {[%clk 0:02:55]}  Qc7 {[%clk 0:02:52]} 13. Re1 {[%clk 0:02:41]}  Nh5 {[%clk 0:02:51]} 14. Bd2 {[%clk 0:02:39]}  b6 {[%clk 0:02:51]} 15. Rb1 {[%clk 0:02:36]}  Rb8 {[%clk 0:02:50]} 16. b4 {[%clk 0:02:35]}  b5 {[%clk 0:02:49]} 17. axb5 {[%clk 0:02:34]}  cxb4 {[%clk 0:02:45]} 18. Rxb4 {[%clk 0:02:14]}  Bxc3 {[%clk 0:02:37]} 19. Qc1 {[%clk 0:02:13]}  Bxd2 {[%clk 0:02:36]} 20. Qxc7 {[%clk 0:02:13]}  Bxb4 {[%clk 0:02:36]} 21. bxa6 {[%clk 0:01:44]}  Bxa6 {[%clk 0:01:51]} 22. Qxd7 {[%clk 0:01:00]}  Bb5 {[%clk 0:01:46]} 23. Qa7 {[%clk 0:00:46]}  Bxe1 {[%clk 0:01:45]} 24. Nxe1 {[%clk 0:00:46]}  Bxe2 {[%clk 0:01:45]} 25. Bf3 {[%clk 0:00:33]}  Rb1 {[%clk 0:01:42]} 26. Qd7 {[%clk 0:00:14]}  Rxe1+ {[%clk 0:01:39]} 0-1


[Site "https://www.chess.com"]

[Event "Titled Tuesday Blitz May 16 Early 2023"]
[White "Hafiz, Arif Abdul"]
[Black "Starozhilov, Leonid"]
[WhiteFideId "7104227"]
[BlackFideId "14106752"]
[WhiteElo "2198"]
[BlackElo "2352"]
[Result "1-0"]
[Round "06"]
[TimeControl "180+2"]
[Date "2023.05.16"]
[WhiteClock "0:00:34"]
[BlackClock "0:00:00"]

1. e4 {[%clk 0:03:00]}  g6 {[%clk 0:02:55]} 2. d4 {[%clk 0:03:01]}  Bg7 {[%clk 0:02:55]} 3. Nc3 {[%clk 0:03:01]}  d6 {[%clk 0:02:48]} 4. Nf3 {[%clk 0:02:59]}  Nf6 {[%clk 0:02:47]} 5. Bf4 {[%clk 0:02:57]}  O-O {[%clk 0:02:46]} 6. Qd2 {[%clk 0:02:57]}  Bg4 {[%clk 0:02:44]} 7. h4 {[%clk 0:02:38]}  Bxf3 {[%clk 0:02:29]} 8. gxf3 {[%clk 0:02:39]}  h5 {[%clk 0:02:26]} 9. O-O-O {[%clk 0:02:34]}  Nc6 {[%clk 0:02:25]} 10. d5 {[%clk 0:02:30]}  Ne5 {[%clk 0:02:24]} 11. Be2 {[%clk 0:02:30]}  c6 {[%clk 0:02:22]} 12. Bg5 {[%clk 0:02:05]}  cxd5 {[%clk 0:02:16]} 13. Bxf6 {[%clk 0:02:00]}  Bxf6 {[%clk 0:02:11]} 14. Nxd5 {[%clk 0:02:01]}  e6 {[%clk 0:01:57]} 15. Nxf6+ {[%clk 0:01:56]}  Qxf6 {[%clk 0:01:58]} 16. f4 {[%clk 0:01:56]}  Nc6 {[%clk 0:01:55]} 17. Rhg1 {[%clk 0:01:46]}  Kh7 {[%clk 0:01:52]} 18. Rg5 {[%clk 0:01:44]}  Rh8 {[%clk 0:01:33]} 19. f5 {[%clk 0:01:40]}  exf5 {[%clk 0:01:28]} 20. exf5 {[%clk 0:01:40]}  Rae8 {[%clk 0:01:01]} 21. fxg6+ {[%clk 0:01:26]}  fxg6 {[%clk 0:01:01]} 22. Bxh5 {[%clk 0:01:27]}  Ne5 {[%clk 0:00:23]} 23. Be2 {[%clk 0:01:21]}  Qxf2 {[%clk 0:00:15]} 24. h5 {[%clk 0:01:20]}  Kg7 {[%clk 0:00:12]} 25. Rdg1 {[%clk 0:01:12]}  Re6 {[%clk 0:00:04]} 26. R5g2 {[%clk 0:01:06]}  Qf6 {[%clk 0:00:02]} 27. Rxg6+ {[%clk 0:00:45]}  Nxg6 {[%clk 0:00:01]} 28. Rxg6+ {[%clk 0:00:46]}  Qxg6 {[%clk 0:00:01]} 29. hxg6 {[%clk 0:00:47]}  Rh1+ {[%clk 0:00:02]} 30. Bd1 {[%clk 0:00:47]}  Ree1 {[%clk 0:00:01]} 31. Qxd6 {[%clk 0:00:45]}  Rhg1 {[%clk 0:00:01]} 32. b4 {[%clk 0:00:43]}  b6 {[%clk 0:00:01]} 33. b5 {[%clk 0:00:42]}  Rxg6 {[%clk 0:00:01]} 34. Qc7+ {[%clk 0:00:39]}  Kg8 {[%clk 0:00:01]} 35. Qb8+ {[%clk 0:00:38]}  Kh7 {[%clk 0:00:01]} 36. Qxa7+ {[%clk 0:00:36]}  Kh6 {[%clk 0:00:00]} 37. Qd7 {[%clk 0:00:34]} 1-0


[Site "https://www.chess.com"]

[Event "Titled Tuesday Blitz May 16 Early 2023"]
[White "Sychev, Klementy"]
[Black "Gritsenko, Nikolai"]
[WhiteFideId "4114060"]
[BlackFideId "14112493"]
[WhiteElo "2583"]
[BlackElo "2389"]
[Result "1-0"]
[Round "06"]
[TimeControl "180+2"]
[Date "2023.05.16"]
[WhiteClock "0:00:08"]
[BlackClock "0:00:00"]

1. e4 {[%clk 0:03:00]}  d5 {[%clk 0:02:59]} 2. exd5 {[%clk 0:03:00]}  Nf6 {[%clk 0:02:59]} 3. Nf3 {[%clk 0:02:57]}  Nxd5 {[%clk 0:02:59]} 4. d4 {[%clk 0:02:57]}  Bf5 {[%clk 0:02:57]} 5. Be2 {[%clk 0:02:51]}  e6 {[%clk 0:02:57]} 6. O-O {[%clk 0:02:51]}  Be7 {[%clk 0:02:57]} 7. c4 {[%clk 0:02:51]}  Nb4 {[%clk 0:02:57]} 8. Nc3 {[%clk 0:02:42]}  Nc2 {[%clk 0:02:57]} 9. Rb1 {[%clk 0:02:42]}  Nb4 {[%clk 0:02:57]} 10. Be3 {[%clk 0:02:42]}  Bxb1 {[%clk 0:02:55]} 11. Qxb1 {[%clk 0:02:43]}  Nd7 {[%clk 0:02:43]} 12. Rd1 {[%clk 0:02:39]}  O-O {[%clk 0:02:30]} 13. d5 {[%clk 0:02:31]}  exd5 {[%clk 0:02:22]} 14. a3 {[%clk 0:02:31]}  Nc6 {[%clk 0:02:22]} 15. Nxd5 {[%clk 0:02:27]}  Re8 {[%clk 0:02:16]} 16. Qf5 {[%clk 0:02:14]}  Qc8 {[%clk 0:01:46]} 17. Bd3 {[%clk 0:01:44]}  Nf8 {[%clk 0:01:30]} 18. Qh5 {[%clk 0:01:42]}  Ng6 {[%clk 0:01:13]} 19. Bf5 {[%clk 0:01:40]}  Qd8 {[%clk 0:01:05]} 20. Nc3 {[%clk 0:01:26]}  Qb8 {[%clk 0:01:00]} 21. h4 {[%clk 0:01:14]}  a5 {[%clk 0:00:51]} 22. Rd2 {[%clk 0:00:52]}  Ra6 {[%clk 0:00:49]} 23. Nd5 {[%clk 0:00:51]}  Qd8 {[%clk 0:00:35]} 24. Nxe7+ {[%clk 0:00:29]}  Qxe7 {[%clk 0:00:35]} 25. Ng5 {[%clk 0:00:30]}  h6 {[%clk 0:00:13]} 26. Rd7 {[%clk 0:00:30]}  Qxd7 {[%clk 0:00:10]} 27. Bxd7 {[%clk 0:00:29]}  Rxe3 {[%clk 0:00:11]} 28. fxe3 {[%clk 0:00:23]}  hxg5 {[%clk 0:00:11]} 29. Qxg5 {[%clk 0:00:19]}  Nce5 {[%clk 0:00:11]} 30. Bc8 {[%clk 0:00:18]}  Rd6 {[%clk 0:00:07]} 31. h5 {[%clk 0:00:13]}  Rd1+ {[%clk 0:00:05]} 32. Kh2 {[%clk 0:00:10]}  Rd2 {[%clk 0:00:04]} 33. Kg3 {[%clk 0:00:07]}  f6 {[%clk 0:00:02]} 34. Qf5 {[%clk 0:00:08]}  Nf8 {[%clk 0:00:00]} 35. Bxb7 {[%clk 0:00:08]} 1-0


[Site "https://www.chess.com"]

[Event "Titled Tuesday Blitz May 16 Early 2023"]
[White "Bharath Subramaniyam H"]
[Black "Soham Kamotra"]
[WhiteFideId "46634827"]
[BlackFideId "46647490"]
[WhiteElo "2400"]
[BlackElo "2209"]
[Result "1/2-1/2"]
[Round "06"]
[TimeControl "180+2"]
[Date "2023.05.16"]
[WhiteClock "0:00:07"]
[BlackClock "0:00:09"]

1. c4 {[%clk 0:02:57]}  b6 {[%clk 0:02:57]} 2. d4 {[%clk 0:02:56]}  Nf6 {[%clk 0:02:56]} 3. Nc3 {[%clk 0:02:57]}  Bb7 {[%clk 0:02:56]} 4. Nf3 {[%clk 0:02:56]}  e6 {[%clk 0:02:56]} 5. a3 {[%clk 0:02:55]}  d5 {[%clk 0:02:55]} 6. cxd5 {[%clk 0:02:54]}  Nxd5 {[%clk 0:02:56]} 7. Nxd5 {[%clk 0:02:46]}  Qxd5 {[%clk 0:02:56]} 8. g3 {[%clk 0:02:42]}  c5 {[%clk 0:02:41]} 9. Bg2 {[%clk 0:02:40]}  cxd4 {[%clk 0:02:40]} 10. O-O {[%clk 0:02:41]}  Be7 {[%clk 0:02:34]} 11. Bf4 {[%clk 0:02:16]}  O-O {[%clk 0:02:22]} 12. Rc1 {[%clk 0:02:13]}  Nc6 {[%clk 0:01:58]} 13. Ne5 {[%clk 0:01:48]}  Qxg2+ {[%clk 0:01:58]} 14. Kxg2 {[%clk 0:01:49]}  Nxe5+ {[%clk 0:01:58]} 15. f3 {[%clk 0:01:41]}  Nc6 {[%clk 0:01:54]} 16. Qa4 {[%clk 0:01:38]}  Rac8 {[%clk 0:01:53]} 17. b4 {[%clk 0:01:36]}  a6 {[%clk 0:01:45]} 18. Rc2 {[%clk 0:01:13]}  d3 {[%clk 0:01:35]} 19. Rd2 {[%clk 0:01:07]}  dxe2 {[%clk 0:01:34]} 20. Rxe2 {[%clk 0:01:08]}  b5 {[%clk 0:01:32]} 21. Qd1 {[%clk 0:01:08]}  Rfd8 {[%clk 0:01:18]} 22. Rd2 {[%clk 0:01:08]}  e5 {[%clk 0:01:18]} 23. Be3 {[%clk 0:01:07]}  Bf6 {[%clk 0:01:12]} 24. Rxd8+ {[%clk 0:01:06]}  Rxd8 {[%clk 0:01:13]} 25. Qb3 {[%clk 0:01:03]}  Nd4 {[%clk 0:01:10]} 26. Bxd4 {[%clk 0:00:47]}  exd4 {[%clk 0:01:11]} 27. Re1 {[%clk 0:00:34]}  g6 {[%clk 0:00:46]} 28. Qc2 {[%clk 0:00:27]}  Bd5 {[%clk 0:00:38]} 29. Qc5 {[%clk 0:00:18]}  d3 {[%clk 0:00:29]} 30. Re8+ {[%clk 0:00:09]}  Rxe8 {[%clk 0:00:25]} 31. Qxd5 {[%clk 0:00:09]}  Rd8 {[%clk 0:00:25]} 32. Qb3 {[%clk 0:00:10]}  d2 {[%clk 0:00:25]} 33. Qd1 {[%clk 0:00:11]}  Bc3 {[%clk 0:00:24]} 34. Kf2 {[%clk 0:00:11]}  Re8 {[%clk 0:00:24]} 35. Qc2 {[%clk 0:00:11]}  Re1 {[%clk 0:00:22]} 36. Qxc3 {[%clk 0:00:10]}  Rh1 {[%clk 0:00:12]} 37. Qc8+ {[%clk 0:00:08]}  Kg7 {[%clk 0:00:12]} 38. Qc3+ {[%clk 0:00:08]}  Kg8 {[%clk 0:00:12]} 39. Qc8+ {[%clk 0:00:07]}  Kg7 {[%clk 0:00:12]} 40. Qc3+ {[%clk 0:00:08]}  f6 {[%clk 0:00:11]} 41. Qc7+ {[%clk 0:00:08]}  Kg8 {[%clk 0:00:11]} 42. Qd8+ {[%clk 0:00:08]}  Kf7 {[%clk 0:00:11]} 43. Qd7+ {[%clk 0:00:08]}  Kf8 {[%clk 0:00:11]} 44. Qd6+ {[%clk 0:00:07]}  Kf7 {[%clk 0:00:11]} 45. Qd7+ {[%clk 0:00:07]}  Kf8 {[%clk 0:00:11]} 46. Qd8+ {[%clk 0:00:07]}  Kf7 {[%clk 0:00:11]} 47. Qd5+ {[%clk 0:00:06]}  Kg7 {[%clk 0:00:09]} 48. Qd7+ {[%clk 0:00:07]}  Kf8 {[%clk 0:00:09]} 1/2-1/2


[Site "https://www.chess.com"]